[Event "EYCC 2017"]
[Site "Mamaia"]
[Date "2017.09.07"]
[Round "3"]
[White "Filip, Andrei"]
[Black "Georgiev, Konstantin"]
[Result "1/2-1/2"]
[ECO "B33"]
[WhiteElo "1612"]
[BlackElo "1911"]
[Annotator "NA"]
[PlyCount "89"]
[EventDate "2017.??.??"]
[EventType "swiss"]
[EventCountry "ROU"]
[SourceTitle "playchess.com"]
[Source "ChessBase"]
[SourceQuality "1"]
[TimeControl "40/5400+30:1800+30"]

1. e4 {[%emt 0:00:00]} c5 {[%emt 0:00:16]} 2. Nf3 {[%emt 0:00:00]} Nc6 {[%emt 0:00:06]} 3. d4 {[%emt 0:00:18]} cxd4 {[%emt 0:00:10]} 4. Nxd4 {[%emt 0:00:10]} Nf6 {[%emt 0:01:00]} 5. Nc3 {[%emt 0:01:28]} e6 {[%emt 0:01:07]} 6. Ndb5 {[%emt 0:01:02]} Bb4 {[%emt 0:02:50]} 7. a3 {[%emt 0:01:26]} Bxc3+ {[%emt 0:00:22]} 8. Nxc3 {[%emt 0:00:23]} d5 {[%emt 0:00:39]} 9. exd5 {[%emt 0:00:45]} exd5 {[%emt 0:00:06]} 10. Bd3 {[%emt 0:00:48]} h6 {[%emt 0:00:13]} 11. O-O {[%emt 0:05:29]} O-O {[%emt 0:00:19]} 12. Re1 {[%emt 0:06:07]} Be6 {[%emt 0:04:02]} 13. Ne2 {[%emt 0:11:32]} Ne5 {[%emt 0:04:21]} 14. Nd4 {[%emt 0:10:04]} Bg4 {[%emt 0:05:15]} 15. f3 {[%emt 0:01:22]} Nxd3 {[%emt 0:00:18]} 16. Qxd3 {[%emt 0:00:20]} Bh5 {[%emt 0:00:07]} 17. Be3 {[%emt 0:08:11]} Rc8 {[%emt 0:01:18]} 18. Rad1 {[%emt 0:03:14]} Bg6 {[%emt 0:00:15]} 19. Qd2 {[%emt 0:02:14]} Re8 {[%emt 0:02:19]} 20. c3 {[%emt 0:02:47]} a6 {[%emt 0:02:07]} 21. Ne2 {[%emt 0:04:35]} Bf5 {[%emt 0:06:07]} 22. Nf4 {[%emt 0:03:09]} Be6 {[%emt 0:03:39]} 23. Bd4 {[%emt 0:05:17]} Nd7 {[%emt 0:02:07]} 24. Nxe6 {[%emt 0:01:10]} fxe6 {[%emt 0:00:11]} 25. Be5 {[%emt 0:05:45]} Qb6+ {[%emt 0:04:55]} 26. Kh1 {[%emt 0:01:00]} Nxe5 {[%emt 0:20:45]} 27. Rxe5 {[%emt 0:00:10]} Rcd8 {[%emt 0:02:24]} 28. Qe2 {[%emt 0:04:01]} Qc6 {[%emt 0:06:12]} 29. f4 {[%emt 0:04:01]} Qc4 {[%emt 0:04:29]} 30. Qe3 {[%emt 0:00:20]} Qc6 {[%emt 0:04:18]} 31. Re1 {[%emt 0:01:18]} Kf7 {[%emt 0:03:47]} 32. Qe2 {[%emt 0:01:54]} b5 {[%emt 0:14:01]} 33. Qh5+ {[%emt 0:00:33]} Kg8 {[%emt 0:00:46]} 34. f5 {[%emt 0:00:35]} Rd6 {[%emt 0:00:55]} 35. f6 {[%emt 0:00:36]} Rf8 {[%emt 0:00:49]} 36. fxg7 {[%emt 0:00:37]} Rf6 {[%emt 0:00:27]} 37. Qh3 {[%emt 0:08:02]} Kxg7 {[%emt 0:00:26]} 38. R5e3 {[%emt 0:01:05]} Qc4 {[%emt 0:00:45]} 39. Rg3+ {[%emt 0:01:55]} Kh7 {[%emt 0:00:11]} 40. Rf3 {[%emt 0:00:00]} e5 {[%emt 0:00:48]} 41. Rxf6 {[%emt 0:02:12]} Rxf6 {[%emt 0:00:06]} 42. Qd7+ {[%emt 0:00:17]} Kg6 {[%emt 0:01:09]} 43. Qe8+ {[%emt 0:00:09]} Kh7 {[%emt 0:00:12]} 44. Qe7+ {[%emt 0:04:07]} Kg6 {[%emt 0:01:07]} 45. Qe8+ {[%emt 0:01:42]} 1/2-1/2

[Event "EYCC 2017"]
[Site "Mamaia"]
[Date "2017.09.07"]
[Round "3"]
[White "Denic, Hana"]
[Black "Roncea, Andrea-Alexandra"]
[Result "1-0"]
[ECO "C44"]
[WhiteElo "1555"]
[BlackElo "1344"]
[Annotator "NA"]
[PlyCount "95"]
[EventDate "2017.??.??"]
[EventType "swiss"]
[EventCountry "ROU"]
[SourceTitle "playchess.com"]
[Source "ChessBase"]
[SourceQuality "1"]
[TimeControl "40/5400+30:1800+30"]

1. e4 {[%emt 0:00:00]} e5 {[%emt 0:00:08]} 2. Nf3 {[%emt 0:00:00]} Nc6 {[%emt 0:00:09]} 3. c3 {[%emt 0:00:05]} Nf6 {[%emt 0:00:23]} 4. d4 {[%emt 0:01:03]} exd4 {[%emt 0:01:19]} 5. e5 {[%emt 0:03:47]} Nd5 {[%emt 0:03:56]} 6. cxd4 {[%emt 0:01:10]} Bb4+ {[%emt 0:00:56]} 7. Bd2 {[%emt 0:00:55]} Bxd2+ {[%emt 0:00:37]} 8. Nbxd2 {[%emt 0:00:48]} d6 {[%emt 0:02:04]} 9. Bb5 {[%emt 0:03:28]} O-O {[%emt 0:03:04]} 10. O-O {[%emt 0:06:01]} Nce7 {[%emt 0:03:38]} 11. Bc4 {[%emt 0:01:03]} Nb6 {[%emt 0:01:36]} 12. Re1 Bg4 {[%emt 0:03:54]} 13. Qc2 {[%emt 0:05:30]} Nxc4 {[%emt 0:03:29]} 14. Qxc4 {[%emt 0:02:13]} Be6 {[%emt 0:01:45]} 15. Qe2 {[%emt 0:02:45]} Nd5 {[%emt 0:03:18]} 16. Nc4 {[%emt 0:03:20]} dxe5 {[%emt 0:01:23]} 17. Ncxe5 {[%emt 0:01:53]} a6 {[%emt 0:05:55]} 18. Rac1 {[%emt 0:03:01]} c6 {[%emt 0:01:00]} 19. Qd2 {[%emt 0:05:44]} h6 {[%emt 0:03:11]} 20. h3 {[%emt 0:04:59]} Re8 {[%emt 0:00:38]} 21. Nh2 {[%emt 0:02:54]} Qd6 {[%emt 0:04:44]} 22. Rc5 {[%emt 0:01:38]} Nc7 {[%emt 0:03:05]} 23. Qb4 {[%emt 0:03:36]} Nb5 {[%emt 0:05:07]} 24. Rxb5 {[%emt 0:01:05]} Qxb4 {[%emt 0:05:06]} 25. Rxb4 {[%emt 0:00:18]} Rab8 {[%emt 0:00:23]} 26. a3 {[%emt 0:01:56]} Bd5 {[%emt 0:04:06]} 27. Rb6 {[%emt 0:01:08]} Re7 {[%emt 0:01:13]} 28. Nd3 {[%emt 0:01:55]} Rxe1+ {[%emt 0:00:40]} 29. Nxe1 {[%emt 0:01:10]} Re8 {[%emt 0:01:27]} 30. Nhf3 {[%emt 0:00:29]} Re7 {[%emt 0:01:11]} 31. Nd3 {[%emt 0:00:43]} Bxf3 {[%emt 0:01:17]} 32. gxf3 {[%emt 0:00:18]} Rd7 {[%emt 0:00:18]} 33. Nc5 {[%emt 0:00:34]} Rxd4 {[%emt 0:00:16]} 34. Nxb7 {[%emt 0:00:59]} Rd1+ {[%emt 0:00:57]} 35. Kg2 {[%emt 0:01:13]} Rb1 {[%emt 0:01:17]} 36. Rxc6 {[%emt 0:00:28]} Rxb2 {[%emt 0:00:15]} 37. Nd6 {[%emt 0:00:57]} Kf8 {[%emt 0:02:04]} 38. Rxa6 {[%emt 0:00:16]} Ra2 {[%emt 0:00:46]} 39. Ra7 {[%emt 0:00:24]} f6 {[%emt 0:03:05]} 40. a4 {[%emt 0:00:00]} Ra3 {[%emt 0:01:13]} 41. a5 {[%emt 0:02:53]} Ra4 {[%emt 0:00:38]} 42. a6 {[%emt 0:00:00]} Kg8 {[%emt 0:00:07]} 43. Ra8+ {[%emt 0:00:05]} Kh7 {[%emt 0:00:14]} 44. a7 {[%emt 0:00:13]} Ra5 {[%emt 0:00:42]} 45. Nc8 {[%emt 0:00:49]} Rg5+ {[%emt 0:00:13]} 46. Kf1 {[%emt 0:00:11]} Ra5 {[%emt 0:00:20]} 47. Rb8 {[%emt 0:00:13]} Ra1+ {[%emt 0:00:14]} 48. Kg2 {[%emt 0:00:22]} 1-0

[Event "EYCC 2017"]
[Site "Mamaia"]
[Date "2017.09.07"]
[Round "3"]
[White "Sala, Giulia"]
[Black "Sichinava, Mariam"]
[Result "0-1"]
[ECO "C01"]
[WhiteElo "1532"]
[BlackElo "1205"]
[Annotator "NA"]
[PlyCount "80"]
[EventDate "2017.??.??"]
[EventType "swiss"]
[EventCountry "ROU"]
[SourceTitle "playchess.com"]
[Source "ChessBase"]
[SourceQuality "1"]
[TimeControl "40/5400+30:1800+30"]

1. e4 {[%emt 0:00:00]} e6 {[%emt 0:00:06]} 2. d4 {[%emt 0:00:00]} d5 {[%emt 0:00:06]} 3. exd5 {[%emt 0:00:00]} exd5 {[%emt 0:00:05]} 4. Nf3 {[%emt 0:00:03]} Bd6 {[%emt 0:00:07]} 5. Bd3 {[%emt 0:00:31]} Nf6 {[%emt 0:00:06]} 6. Qe2+ {[%emt 0:00:19]} Be7 {[%emt 0:01:15]} 7. O-O {[%emt 0:01:05]} O-O {[%emt 0:00:07]} 8. Re1 {[%emt 0:05:06]} Bd6 {[%emt 0:11:47]} 9. Bg5 {[%emt 0:03:14]} h6 {[%emt 0:03:19]} 10. Bh4 {[%emt 0:01:22]} Bg4 {[%emt 0:01:19]} 11. h3 {[%emt 0:02:52]} Bh5 {[%emt 0:01:47]} 12. c3 {[%emt 0:12:15]} Nbd7 {[%emt 0:02:33]} 13. Nbd2 {[%emt 0:00:42]} c6 {[%emt 0:06:11]} 14. Qd1 {[%emt 0:10:55]} Qc7 {[%emt 0:05:25]} 15. Bxf6 {[%emt 0:10:35]} Nxf6 {[%emt 0:00:22]} 16. Qc2 {[%emt 0:00:22]} Bxf3 {[%emt 0:08:01]} 17. Nxf3 {[%emt 0:00:18]} Rfe8 {[%emt 0:04:20]} 18. Nh4 {[%emt 0:08:26]} Rac8 {[%emt 0:07:41]} 19. Nf5 {[%emt 0:01:20]} Bf8 {[%emt 0:01:33]} 20. Rad1 {[%emt 0:02:29]} g6 {[%emt 0:02:15]} 21. Nh4 {[%emt 0:01:21]} Bg7 {[%emt 0:02:14]} 22. Nf3 {[%emt 0:01:07]} c5 {[%emt 0:07:56]} 23. Bb5 {[%emt 0:04:43]} Rxe1+ {[%emt 0:05:23]} 24. Rxe1 {[%emt 0:00:15]} c4 {[%emt 0:00:04]} 25. Qc1 {[%emt 0:02:12]} Qa5 {[%emt 0:02:44]} 26. Bxc4 {[%emt 0:06:46]} Rxc4 {[%emt 0:02:12]} 27. a3 {[%emt 0:02:51]} Rc8 {[%emt 0:05:24]} 28. Ne5 {[%emt 0:01:33]} Qc7 {[%emt 0:00:46]} 29. f3 {[%emt 0:00:18]} Nd7 {[%emt 0:00:32]} 30. Ng4 {[%emt 0:02:39]} h5 {[%emt 0:03:13]} 31. Nf2 {[%emt 0:00:52]} Bxd4 {[%emt 0:00:56]} 32. Qd2 {[%emt 0:01:13]} Bb6 33. Qxd5 {[%emt 0:02:09]} Qg3 {[%emt 0:02:04]} 34. Re2 {[%emt 0:01:38]} Rd8 {[%emt 0:00:56]} 35. Kf1 {[%emt 0:01:50]} Nc5 {[%emt 0:01:36]} 36. Qa2 {[%emt 0:01:04]} Nd3 {[%emt 0:00:42]} 37. Ne4 {[%emt 0:00:48]} Qh2 {[%emt 0:00:57]} 38. Nf6+ {[%emt 0:02:01]} Kg7 {[%emt 0:00:25]} 39. Ne8+ {[%emt 0:00:21]} Kf8 {[%emt 0:00:47]} 40. Re4 {[%emt 0:00:00]} Qg1+ {[%emt 0:00:06] Ke1 [%clk 0:00:00]} 0-1

[Event "EYCC 2017"]
[Site "Mamaia"]
[Date "2017.09.07"]
[Round "3"]
[White "Svergina, Sofya"]
[Black "State-Ungureanu, Elena-Anastasia"]
[Result "1-0"]
[ECO "C47"]
[WhiteElo "1472"]
[BlackElo "1158"]
[Annotator "NA"]
[PlyCount "93"]
[EventDate "2017.??.??"]
[EventType "swiss"]
[EventCountry "ROU"]
[SourceTitle "playchess.com"]
[Source "ChessBase"]
[SourceQuality "1"]
[TimeControl "40/5400+30:1800+30"]

1. e4 {[%emt 0:00:00]} e5 {[%emt 0:00:06]} 2. Nf3 {[%emt 0:00:00]} Nc6 {[%emt 0:00:07]} 3. Nc3 {[%emt 0:00:00]} Nf6 {[%emt 0:00:17]} 4. d4 {[%emt 0:00:07]} exd4 {[%emt 0:00:43]} 5. Nxd4 {[%emt 0:00:13]} Bc5 {[%emt 0:00:28]} 6. Be3 {[%emt 0:00:07]} Nxd4 {[%emt 0:00:41]} 7. Bxd4 {[%emt 0:00:07]} Bxd4 {[%emt 0:00:39]} 8. Qxd4 {[%emt 0:00:13]} d6 {[%emt 0:03:23]} 9. Bc4 {[%emt 0:03:06]} O-O {[%emt 0:00:29]} 10. O-O {[%emt 0:00:19]} Be6 {[%emt 0:00:19]} 11. Bb3 {[%emt 0:01:14]} c6 {[%emt 0:00:42]} 12. Rad1 {[%emt 0:01:19]} Bxb3 {[%emt 0:00:56]} 13. axb3 {[%emt 0:00:24]} Ne8 {[%emt 0:02:03]} 14. Rfe1 {[%emt 0:06:20]} Qd7 {[%emt 0:00:27]} 15. Ne2 {[%emt 0:02:26]} Rd8 {[%emt 0:00:56]} 16. Qxa7 {[%emt 0:01:40]} d5 {[%emt 0:00:34]} 17. exd5 {[%emt 0:01:18]} cxd5 {[%emt 0:00:13]} 18. Qd4 {[%emt 0:00:35]} Nf6 {[%emt 0:01:05]} 19. c4 {[%emt 0:02:21]} dxc4 {[%emt 0:00:53]} 20. Qxd7 {[%emt 0:00:50]} Rxd7 {[%emt 0:00:26]} 21. Rxd7 {[%emt 0:00:09]} Nxd7 {[%emt 0:00:09]} 22. bxc4 {[%emt 0:00:09]} Re8 {[%emt 0:01:17]} 23. Kf1 {[%emt 0:00:57]} Nc5 {[%emt 0:00:24]} 24. Nf4 {[%emt 0:01:59]} Rc8 {[%emt 0:00:49]} 25. Nd5 {[%emt 0:01:26]} Nd3 {[%emt 0:00:51]} 26. Ne7+ {[%emt 0:00:10]} Kf8 {[%emt 0:00:10]} 27. Nxc8 {[%emt 0:00:07]} Nxe1 {[%emt 0:00:12]} 28. Kxe1 {[%emt 0:00:16]} Ke8 {[%emt 0:00:09]} 29. Nd6+ {[%emt 0:00:13]} Ke7 {[%emt 0:00:15]} 30. Nxb7 {[%emt 0:00:11]} Kd7 {[%emt 0:02:03]} 31. b4 {[%emt 0:00:57]} Kc7 {[%emt 0:00:11]} 32. Na5 {[%emt 0:00:34]} Kb6 {[%emt 0:00:25]} 33. c5+ {[%emt 0:00:08]} Kc7 {[%emt 0:00:10]} 34. b5 {[%emt 0:00:16]} Kb8 {[%emt 0:00:52]} 35. b6 {[%emt 0:00:07]} Kc8 {[%emt 0:00:39]} 36. c6 {[%emt 0:00:08]} f5 {[%emt 0:01:27]} 37. c7 {[%emt 0:00:27]} g5 {[%emt 0:00:20]} 38. Nc6 {[%emt 0:00:48]} h5 {[%emt 0:01:06]} 39. Na7+ {[%emt 0:00:07]} Kd7 {[%emt 0:00:31]} 40. c8=Q+ {[%emt 0:00:00]} Kd6 {[%emt 0:00:15]} 41. Qc7+ {[%emt 0:00:41]} Kd5 {[%emt 0:00:16]} 42. Qc6+ {[%emt 0:00:09]} Ke5 {[%emt 0:00:35]} 43. Kd2 {[%emt 0:00:13]} f4 {[%emt 0:00:08]} 44. Kd3 {[%emt 0:00:09]} g4 {[%emt 0:00:20]} 45. Nb5 {[%emt 0:00:27]} h4 {[%emt 0:00:20]} 46. Nd4 {[%emt 0:00:20]} g3 {[%emt 0:00:57]} 47. Qe6# {[%emt 0:00:16]} 1-0

[Event "EYCC 2017"]
[Site "Mamaia"]
[Date "2017.09.07"]
[Round "3"]
[White "Mustu, Hatice Asli"]
[Black "Gasimova, Samra"]
[Result "1-0"]
[ECO "A48"]
[WhiteElo "1365"]
[BlackElo "1578"]
[Annotator "NA"]
[PlyCount "96"]
[EventDate "2017.??.??"]
[EventType "swiss"]
[EventCountry "ROU"]
[SourceTitle "playchess.com"]
[Source "ChessBase"]
[SourceQuality "1"]
[TimeControl "40/5400+30:1800+30"]

1. d4 {[%emt 0:00:00]} Nf6 {[%emt 0:00:18]} 2. Bf4 {[%emt 0:00:00]} g6 {[%emt 0:00:30]} 3. Nf3 {[%emt 0:00:02]} Bg7 {[%emt 0:00:26]} 4. e3 {[%emt 0:00:17]} O-O {[%emt 0:00:13]} 5. Be2 {[%emt 0:00:28]} d6 {[%emt 0:00:33]} 6. h3 {[%emt 0:01:26]} c5 {[%emt 0:01:30]} 7. c3 {[%emt 0:01:07]} Nbd7 {[%emt 0:03:03]} 8. Nbd2 {[%emt 0:02:57]} b6 {[%emt 0:01:07]} 9. O-O {[%emt 0:02:19]} Bb7 {[%emt 0:02:58]} 10. Bh2 {[%emt 0:06:33]} Rc8 {[%emt 0:02:28]} 11. Qa4 {[%emt 0:08:58]} a6 {[%emt 0:05:52]} 12. Qb3 {[%emt 0:03:27]} b5 {[%emt 0:19:33]} 13. a4 {[%emt 0:07:37]} Bd5 {[%emt 0:05:51]} 14. Qd1 {[%emt 0:17:49]} Qb6 {[%emt 0:01:50]} 15. axb5 {[%emt 0:04:12]} axb5 {[%emt 0:00:20]} 16. Re1 {[%emt 0:10:26]} Ra8 {[%emt 0:01:50]} 17. Qc2 {[%emt 0:01:22]} Qc6 {[%emt 0:02:55]} 18. c4 {[%emt 0:06:21]} bxc4 {[%emt 0:02:38]} 19. Bxc4 {[%emt 0:02:10]} Bxc4 {[%emt 0:11:57]} 20. Qxc4 {[%emt 0:01:11]} Nb6 {[%emt 0:01:22]} 21. Qc2 {[%emt 0:00:31]} Rfc8 {[%emt 0:03:20]} 22. Rxa8 {[%emt 0:05:42]} Qxa8 {[%emt 0:01:33]} 23. Qb3 {[%emt 0:01:51]} Qa5 {[%emt 0:01:58]} 24. Rd1 {[%emt 0:01:57]} Qb4 {[%emt 0:01:03]} 25. dxc5 {[%emt 0:06:22]} Qxc5 {[%emt 0:03:52]} 26. Ra1 {[%emt 0:01:46]} Nbd5 {[%emt 0:01:38]} 27. Bg3 {[%emt 0:02:04]} Nh5 {[%emt 0:03:03]} 28. Bh4 {[%emt 0:00:30]} h6 {[%emt 0:05:57]} 29. e4 {[%emt 0:00:13]} Ndf4 {[%emt 0:00:22]} 30. Bxe7 {[%emt 0:01:56]} Qc7 {[%emt 0:04:32]} 31. Bh4 {[%emt 0:00:39]} g5 {[%emt 0:05:13]} 32. Bg3 {[%emt 0:00:04]} Ne2+ {[%emt 0:00:32]} 33. Kh2 {[%emt 0:00:20]} Nexg3 {[%emt 0:01:35]} 34. fxg3 {[%emt 0:00:10]} Rb8 {[%emt 0:00:45]} 35. Qd5 {[%emt 0:00:30]} Nf6 {[%emt 0:01:53]} 36. Qa5 {[%emt 0:00:56]} Qxa5 {[%emt 0:00:29]} 37. Rxa5 {[%emt 0:00:01]} Rxb2 {[%emt 0:00:24]} 38. Ra8+ {[%emt 0:00:08]} Kh7 {[%emt 0:00:06]} 39. Rd8 {[%emt 0:00:16]} Rb4 {[%emt 0:00:34]} 40. Rxd6 {[%emt 0:00:00]} Nxe4 {[%emt 0:00:15]} 41. Nxe4 {[%emt 0:01:14]} Rxe4 {[%emt 0:00:08]} 42. Rd7 {[%emt 0:00:33]} Kg6 {[%emt 0:00:43]} 43. g4 {[%emt 0:00:32]} Re2 {[%emt 0:02:54]} 44. Rd6+ {[%emt 0:00:22]} Re6 {[%emt 0:00:15]} 45. Rd5 {[%emt 0:00:39]} Re4 {[%emt 0:02:11]} 46. Rd6+ {[%emt 0:01:05]} Re6 {[%emt 0:00:41]} 47. Rd5 {[%emt 0:00:47]} Bc3 {[%emt 0:02:25]} 48. Nd4 {[%emt 0:03:10]} Bxd4 {[%emt 0:04:33]} 1-0

[Event "EYCC 2017"]
[Site "Mamaia"]
[Date "2017.09.07"]
[Round "3"]
[White "Bousmaha, Leila"]
[Black "Kapicakova, Lucia"]
[Result "1-0"]
[ECO "C47"]
[WhiteElo "1364"]
[BlackElo "1555"]
[Annotator "NA"]
[PlyCount "141"]
[EventDate "2017.??.??"]
[EventType "swiss"]
[EventCountry "ROU"]
[SourceTitle "playchess.com"]
[Source "ChessBase"]
[SourceQuality "1"]
[TimeControl "40/5400+30:1800+30"]

1. e4 {[%emt 0:00:00]} e5 {[%emt 0:00:07]} 2. Nf3 {[%emt 0:00:00]} Nc6 {[%emt 0:00:10]} 3. Nc3 {[%emt 0:00:46]} Nf6 {[%emt 0:00:23]} 4. d4 {[%emt 0:00:27]} exd4 {[%emt 0:00:22]} 5. Nxd4 {[%emt 0:00:40]} Bb4 {[%emt 0:01:23]} 6. Nxc6 {[%emt 0:01:38]} bxc6 {[%emt 0:00:40]} 7. Bd3 {[%emt 0:00:49]} d5 {[%emt 0:00:54]} 8. exd5 {[%emt 0:07:36]} cxd5 {[%emt 0:00:25]} 9. O-O {[%emt 0:00:07]} O-O {[%emt 0:00:27]} 10. Bg5 {[%emt 0:00:06]} c6 {[%emt 0:00:44]} 11. Qf3 {[%emt 0:00:16]} Be7 {[%emt 0:01:08]} 12. Rfe1 {[%emt 0:00:18]} Re8 {[%emt 0:00:44]} 13. h3 {[%emt 0:01:49]} h6 {[%emt 0:01:28]} 14. Bh4 {[%emt 0:04:32]} Bd7 {[%emt 0:01:33]} 15. Bf1 {[%emt 0:11:58]} Rb8 {[%emt 0:02:23]} 16. Rab1 {[%emt 0:00:17]} Rb4 {[%emt 0:08:00]} 17. Bg3 {[%emt 0:01:50]} Bc5 {[%emt 0:03:03]} 18. Rxe8+ {[%emt 0:01:11]} Qxe8 {[%emt 0:00:27]} 19. a3 {[%emt 0:00:11]} Rb7 {[%emt 0:03:30]} 20. Na4 {[%emt 0:01:19]} Ne4 {[%emt 0:04:17]} 21. Re1 {[%emt 0:04:38]} Be6 {[%emt 0:01:33]} 22. Bd3 {[%emt 0:04:55]} Ng5 {[%emt 0:04:27]} 23. Qd1 {[%emt 0:03:44]} Bb6 {[%emt 0:04:22]} 24. Nxb6 {[%emt 0:00:21]} axb6 {[%emt 0:02:38]} 25. f4 {[%emt 0:01:44]} Ne4 {[%emt 0:03:45]} 26. Bxe4 {[%emt 0:00:14]} dxe4 {[%emt 0:00:18]} 27. Rxe4 {[%emt 0:00:06]} Qd7 {[%emt 0:01:01]} 28. Rd4 {[%emt 0:00:41]} Qe7 {[%emt 0:01:08]} 29. Qd3 {[%emt 0:07:04]} Rd7 {[%emt 0:01:38]} 30. Rxd7 {[%emt 0:00:25]} Qxd7 {[%emt 0:00:21]} 31. Qxd7 {[%emt 0:00:08]} Bxd7 {[%emt 0:00:12]} 32. Kf2 {[%emt 0:00:06]} Kf8 {[%emt 0:01:20]} 33. Ke3 {[%emt 0:00:50]} Ke7 {[%emt 0:01:19]} 34. b4 {[%emt 0:07:11]} b5 {[%emt 0:01:37]} 35. Kd4 {[%emt 0:00:57]} Ke6 {[%emt 0:00:57]} 36. Bf2 {[%emt 0:01:01]} f5 {[%emt 0:01:18]} 37. Be3 {[%emt 0:00:18]} h5 {[%emt 0:00:36]} 38. h4 {[%emt 0:00:26]} Kd6 {[%emt 0:01:16]} 39. c4 {[%emt 0:01:18]} g6 {[%emt 0:00:42]} 40. g3 {[%emt 0:00:00]} Be8 {[%emt 0:01:49]} 41. Kd3 {[%emt 0:02:09]} Bd7 {[%emt 0:01:56]} 42. Bc5+ {[%emt 0:00:52]} Ke6 {[%emt 0:00:18]} 43. Bd4 {[%emt 0:01:52]} Be8 {[%emt 0:00:50]} 44. Be5 {[%emt 0:00:18]} Bf7 {[%emt 0:01:28]} 45. Kd4 {[%emt 0:00:57]} Kd7 {[%emt 0:00:30]} 46. cxb5 {[%emt 0:00:35]} cxb5 {[%emt 0:00:15]} 47. Kc5 {[%emt 0:00:02]} Bc4 {[%emt 0:01:31]} 48. a4 {[%emt 0:00:36]} Bd3 {[%emt 0:02:35]} 49. a5 {[%emt 0:00:39]} Kc8 {[%emt 0:01:31]} 50. a6 {[%emt 0:00:06]} Be2 {[%emt 0:00:28]} 51. Kb6 {[%emt 0:00:20]} Bd3 {[%emt 0:01:32]} 52. a7 {[%emt 0:00:14]} Be4 {[%emt 0:00:18]} 53. Kxb5 {[%emt 0:00:31]} Kb7 {[%emt 0:00:21]} 54. Bd4 {[%emt 0:00:06]} Bc6+ {[%emt 0:01:19]} 55. Kc5 {[%emt 0:00:17]} Be8 {[%emt 0:02:05]} 56. Kd6 {[%emt 0:00:24]} Bb5 {[%emt 0:01:35]} 57. Ke7 {[%emt 0:00:39]} Be2 {[%emt 0:00:14]} 58. Kf6 {[%emt 0:00:14]} Bg4 {[%emt 0:00:22]} 59. Kxg6 {[%emt 0:00:05]} Ka8 {[%emt 0:00:17]} 60. b5 {[%emt 0:00:05]} Kb7 {[%emt 0:00:26]} 61. Kf6 {[%emt 0:00:27]} Bh3 {[%emt 0:00:41]} 62. Ke6 {[%emt 0:00:21]} Bg4 {[%emt 0:00:16]} 63. b6 {[%emt 0:01:01]} Bh3 {[%emt 0:00:41]} 64. Kd6 {[%emt 0:03:23]} Bg4 {[%emt 0:01:47]} 65. Bc5 {[%emt 0:00:28]} Bf3 {[%emt 0:00:37]} 66. Bd4 {[%emt 0:03:59]} Bg2 {[%emt 0:00:29]} 67. g4 {[%emt 0:01:33]} Ka8 {[%emt 0:06:20]} 68. gxh5 {[%emt 0:00:52]} Bc6 {[%emt 0:00:57]} 69. b7+ {[%emt 0:01:41]} Bxb7 {[%emt 0:01:11]} 70. h6 {[%emt 0:00:53]} Bc6 {[%emt 0:00:26]} 71. h7 {[%emt 0:00:09]} 1-0

[Event "EYCC 2017"]
[Site "Mamaia"]
[Date "2017.09.07"]
[Round "3"]
[White "Usov, Aleksandr E"]
[Black "Vetokhin, Savva"]
[Result "0-1"]
[ECO "D20"]
[WhiteElo "1327"]
[BlackElo "1703"]
[Annotator "NA"]
[PlyCount "136"]
[EventDate "2017.??.??"]
[EventType "swiss"]
[EventCountry "ROU"]
[SourceTitle "playchess.com"]
[Source "ChessBase"]
[SourceQuality "1"]
[TimeControl "40/5400+30:1800+30"]

1. d4 {[%emt 0:00:00]} d5 {[%emt 0:00:15]} 2. c4 {[%emt 0:00:00]} dxc4 {[%emt 0:00:10]} 3. e3 {[%emt 0:00:03]} e5 {[%emt 0:00:23]} 4. Nf3 {[%emt 0:01:26]} exd4 {[%emt 0:00:17]} 5. Bxc4 {[%emt 0:00:41]} Bb4+ {[%emt 0:03:25]} 6. Bd2 {[%emt 0:00:52]} Bxd2+ {[%emt 0:00:16]} 7. Qxd2 {[%emt 0:00:43]} Nf6 {[%emt 0:02:11]} 8. Qxd4 {[%emt 0:04:17]} Qe7 {[%emt 0:04:03]} 9. O-O {[%emt 0:02:47]} Nc6 {[%emt 0:01:13]} 10. Bb5 {[%emt 0:00:57]} Bd7 {[%emt 0:00:57]} 11. Bxc6 {[%emt 0:00:31]} Bxc6 {[%emt 0:00:14]} 12. Nc3 {[%emt 0:01:16]} Qe6 {[%emt 0:13:20]} 13. Qe5 {[%emt 0:01:06]} Nd5 {[%emt 0:11:24]} 14. Qxg7 {[%emt 0:02:45]} O-O-O {[%emt 0:00:38]} 15. Qe5 {[%emt 0:03:47]} Qg4 {[%emt 0:04:19]} 16. h3 {[%emt 0:02:50]} Qg6 {[%emt 0:05:12]} 17. Nh4 {[%emt 0:02:16]} Qg8 {[%emt 0:07:09]} 18. Nf5 {[%emt 0:01:05]} Kb8 {[%emt 0:08:21]} 19. e4 {[%emt 0:11:07]} Nxc3 {[%emt 0:01:08]} 20. bxc3 {[%emt 0:00:49]} f6 {[%emt 0:09:31]} 21. Qxf6 {[%emt 0:03:55]} Bxe4 22. Ng3 {[%emt 0:02:02]} Bc6 {[%emt 0:04:51]} 23. Rfb1 {[%emt 0:00:42]} Rd6 {[%emt 0:00:37]} 24. Qf4 {[%emt 0:01:53]} Qd5 {[%emt 0:02:12]} 25. f3 {[%emt 0:01:34]} Qc5+ {[%emt 0:02:53]} 26. Kh2 {[%emt 0:00:51]} Rg8 {[%emt 0:04:29]} 27. Rd1 {[%emt 0:04:20]} Rdg6 {[%emt 0:01:02]} 28. Qh4 {[%emt 0:02:44]} Qf8 {[%emt 0:00:44]} 29. Ne4 {[%emt 0:05:20]} Rxg2+ {[%emt 0:00:34]} 30. Kh1 {[%emt 0:00:12]} R2g3 {[%emt 0:05:14]} 31. Rd8+ {[%emt 0:01:29]} Qxd8 {[%emt 0:00:12]} 32. Qxd8+ {[%emt 0:01:15]} Rxd8 {[%emt 0:00:05]} 33. Nxg3 {[%emt 0:00:08]} Bxf3+ {[%emt 0:00:05]} 34. Kg1 {[%emt 0:00:25]} Rd2 {[%emt 0:00:09]} 35. Re1 {[%emt 0:01:27]} b6 {[%emt 0:03:08]} 36. Nf5 {[%emt 0:00:36]} Rxa2 {[%emt 0:00:39]} 37. Nd4 {[%emt 0:00:37]} Bd5 {[%emt 0:00:33]} 38. Re7 {[%emt 0:00:52]} c5 {[%emt 0:01:18]} 39. Nf5 {[%emt 0:01:17]} a5 {[%emt 0:03:18]} 40. Rxh7 {[%emt 0:00:00]} a4 {[%emt 0:00:16]} 41. Ne7 {[%emt 0:01:35]} Be4 {[%emt 0:01:38]} 42. Rh4 {[%emt 0:00:25]} Bb7 {[%emt 0:00:42]} 43. Rh8+ {[%emt 0:00:21]} Ka7 {[%emt 0:00:41]} 44. Rh7 {[%emt 0:00:37]} b5 {[%emt 0:02:00]} 45. Nc6+ {[%emt 0:00:32]} Kb6 {[%emt 0:00:12]} 46. Ne5 {[%emt 0:00:16]} a3 {[%emt 0:00:50]} 47. Rh6+ {[%emt 0:00:09]} Ka7 {[%emt 0:00:07]} 48. h4 {[%emt 0:00:31]} Ra1+ {[%emt 0:00:44]} 49. Kf2 {[%emt 0:00:16]} a2 {[%emt 0:00:21]} 50. Rh7 {[%emt 0:00:14]} Rc1 {[%emt 0:00:24]} 51. Nc6+ {[%emt 0:00:15]} Kb6 {[%emt 0:00:47]} 52. Rxb7+ {[%emt 0:00:14]} Kxb7 {[%emt 0:00:22]} 53. Na5+ {[%emt 0:00:10]} Kb6 {[%emt 0:00:04]} 54. Nb3 {[%emt 0:00:14]} a1=Q {[%emt 0:00:11]} 55. Nxa1 {[%emt 0:00:06]} Rxa1 {[%emt 0:00:07]} 56. h5 {[%emt 0:00:12]} b4 {[%emt 0:01:33]} 57. cxb4 {[%emt 0:00:04]} cxb4 {[%emt 0:00:03]} 58. h6 {[%emt 0:00:07]} b3 {[%emt 0:00:05]} 59. h7 {[%emt 0:00:09]} Rh1 {[%emt 0:00:06]} 60. Ke3 {[%emt 0:00:21]} b2 {[%emt 0:00:06]} 61. h8=Q {[%emt 0:00:11]} Rxh8 {[%emt 0:00:06]} 62. Kd4 {[%emt 0:00:21]} b1=Q {[%emt 0:00:09]} 63. Ke5 {[%emt 0:00:11]} Qd3 {[%emt 0:00:24]} 64. Kf4 {[%emt 0:00:05]} Re8 {[%emt 0:00:55]} 65. Kg5 {[%emt 0:02:54]} Qf3 {[%emt 0:00:14]} 66. Kg6 {[%emt 0:00:05]} Rg8+ {[%emt 0:00:10]} 67. Kh7 {[%emt 0:00:03]} Rg5 {[%emt 0:00:13]} 68. Kh6 {[%emt 0:00:06]} Qh5# 0-1